Workbook

Sheet Data
B4: Table1
B5: Consultant | C5: Category | D5: Hours | E5: Week | G5: Consultant | H5: Bebko | T5: Consultant | U5: Bebko
B6: Bebko | C6: Edison | D6: 6 | E6: 2011-06-27 | G6: PivotTable2 | T6: PivotTable3
B7: Bebko | C7: PTO | D7: 0 | E7: 2011-06-27 | G7: Sum of Hours | H7: Category | T7: Sum of Hours | U7: Category
B8: Bebko | C8: Other | D8: 2 | E8: 2011-06-27 | G8: Week | H8: Comm | I8: Edison | J8: Dummy | K8: Dummy2 | L8: Dummy3 | M8: Dummy4 | N8: PTO | O8: Other | T8: Week | U8: Comm | V8: Edison | W8: Grand Total
B9: Bebko | C9: Comm | D9: 0 | E9: 2011-06-27 | G9: 2011-06-27 | H9: 0 | I9: 6 | J9: 0 | K9: 0 | L9: 0 | M9: 0 | N9: 0 | O9: 2 | T9: 2011-06-27 | U9: 0 | V9: 6 | W9: 6
B10: Bebko | C10: PTO | D10: 20 | E10: 2011-07-04 | G10: 2011-07-04 | H10: 0 | I10: 2 | J10: 0 | K10: 0 | L10: 0 | M10: 0 | N10: 20 | O10: 18 | T10: 2011-07-04 | U10: 0 | V10: 2 | W10: 2
B11: Bebko | C11: Other | D11: 18 | E11: 2011-07-04 | G11: 2011-07-11 | H11: 40 | I11: 0 | J11: 0 | K11: 0 | L11: 0 | M11: 0 | N11: 0 | O11: 0 | T11: 2011-07-11 | U11: 40 | V11: 0 | W11: 40
B12: Bebko | C12: Edison | D12: 2 | E12: 2011-07-04 | G12: 2011-07-18 | H12: 40 | I12: 0 | J12: 0 | K12: 0 | L12: 0 | M12: 0 | N12: 0 | O12: 1 | T12: 2011-07-18 | U12: 40 | V12: 0 | W12: 40
B13: Bebko | C13: Comm | D13: 0 | E13: 2011-07-04 | G13: 2011-07-25 | H13: 28.5 | I13: 0 | J13: 0 | K13: 0 | L13: 0 | M13: 0 | N13: 8 | O13: 3.5 | T13: 2011-07-25 | U13: 28.5 | V13: 0 | W13: 28.5
B14: Bebko | C14: PTO | D14: 0 | E14: 2011-07-11 | G14: 2011-08-01 | H14: 19.5 | I14: 0 | J14: 0 | K14: 0 | L14: 0 | M14: 0 | N14: 0 | O14: 20.5 | T14: 2011-08-01 | U14: 19.5 | V14: 0 | W14: 19.5
B15: Bebko | C15: Other | D15: 0 | E15: 2011-07-11 | G15: 2011-08-08 | H15: 14.5 | I15: 16.5 | J15: 0 | K15: 0 | L15: 0 | M15: 0 | N15: 0 | O15: 9 | T15: 2011-08-08 | U15: 14.5 | V15: 16.5 | W15: 31
B16: Bebko | C16: Comm | D16: 40 | E16: 2011-07-11 | G16: 2011-08-15 | H16: 20 | I16: 4 | J16: 0 | K16: 0 | L16: 0 | M16: 0 | N16: 0 | O16: 19.5 | T16: 2011-08-15 | U16: 20 | V16: 4 | W16: 24
B17: Bebko | C17: Edison | D17: 0 | E17: 2011-07-11 | G17: 2011-08-22 | H17: 8 | I17: 8.5 | J17: 0 | K17: 0 | L17: 0 | M17: 0 | N17: 8 | O17: 15.5 | T17: 2011-08-22 | U17: 8 | V17: 8.5 | W17: 16.5
B18: Bebko | C18: Comm | D18: 40 | E18: 2011-07-18 | G18: 2011-08-29 | H18: 35 | I18: 4 | J18: 0 | K18: 0 | L18: 0 | M18: 0 | N18: 0 | O18: 4.5 | T18: 2011-08-29 | U18: 35 | V18: 4 | W18: 39
B19: Bebko | C19: PTO | D19: 0 | E19: 2011-07-18 | G19: 2011-09-05 | H19: 9.5 | I19: 2 | J19: 0 | K19: 0 | L19: 0 | M19: 0 | N19: 16 | O19: 12.5 | T19: 2011-09-05 | U19: 9.5 | V19: 2 | W19: 11.5
B20: Bebko | C20: Edison | D20: 0 | E20: 2011-07-18 | G20: 2011-09-12 | H20: 3.5 | I20: 30.5 | J20: 0 | K20: 0 | L20: 0 | M20: 0 | N20: 0 | O20: 10 | T20: 2011-09-12 | U20: 3.5 | V20: 30.5 | W20: 34
B21: Bebko | C21: Other | D21: 1 | E21: 2011-07-18 | G21: Grand Total | H21: 218.5 | I21: 73.5 | J21: 0 | K21: 0 | L21: 0 | M21: 0 | N21: 52 | O21: 116
B22: Bebko | C22: Edison | D22: 0 | E22: 2011-07-25
B23: Bebko | C23: PTO | D23: 8 | E23: 2011-07-25
B24: Bebko | C24: Comm | D24: 28.5 | E24: 2011-07-25
B25: Bebko | C25: Other | D25: 3.5 | E25: 2011-07-25
B26: Bebko | C26: PTO | D26: 0 | E26: 2011-08-01
B27: Bebko | C27: Comm | D27: 19.5 | E27: 2011-08-01
B28: Bebko | C28: Other | D28: 20.5 | E28: 2011-08-01
B29: Bebko | C29: Edison | D29: 0 | E29: 2011-08-01
B30: Bebko | C30: Other | D30: 9 | E30: 2011-08-08
B31: Bebko | C31: PTO | D31: 0 | E31: 2011-08-08
B32: Bebko | C32: Comm | D32: 14.5 | E32: 2011-08-08
B33: Bebko | C33: Edison | D33: 16.5 | E33: 2011-08-08
B34: Bebko | C34: Comm | D34: 20 | E34: 2011-08-15
B35: Bebko | C35: Other | D35: 19.5 | E35: 2011-08-15
B36: Bebko | C36: PTO | D36: 0 | E36: 2011-08-15
B37: Bebko | C37: Edison | D37: 4 | E37: 2011-08-15
B38: Bebko | C38: Comm | D38: 8 | E38: 2011-08-22
B39: Bebko | C39: Edison | D39: 8.5 | E39: 2011-08-22
B40: Bebko | C40: Other | D40: 15.5 | E40: 2011-08-22
B41: Bebko | C41: PTO | D41: 8 | E41: 2011-08-22
B42: Bebko | C42: PTO | D42: 0 | E42: 2011-08-29
B43: Bebko | C43: Other | D43: 4.5 | E43: 2011-08-29
B44: Bebko | C44: Edison | D44: 4 | E44: 2011-08-29
B45: Bebko | C45: Comm | D45: 35 | E45: 2011-08-29
B46: Bebko | C46: Other | D46: 12.5 | E46: 2011-09-05
B47: Bebko | C47: Comm | D47: 9.5 | E47: 2011-09-05
B48: Bebko | C48: PTO | D48: 16 | E48: 2011-09-05
B49: Bebko | C49: Edison | D49: 2 | E49: 2011-09-05
B50: Bebko | C50: Dummy4 | D50: 0 | E50: 2011-09-12
B51: Bebko | C51: Dummy2 | D51: 0 | E51: 2011-09-12
B52: Bebko | C52: Comm | D52: 3.5 | E52: 2011-09-12
B53: Bebko | C53: Dummy | D53: 0 | E53: 2011-09-12
B54: Bebko | C54: Dummy3 | D54: 0 | E54: 2011-09-12
B55: Bebko | C55: Other | D55: 10 | E55: 2011-09-12
B56: Bebko | C56: Edison | D56: 30.5 | E56: 2011-09-12
B57: Brewer | C57: Comm | D57: 0 | E57: 2011-06-27
B58: Brewer | C58: Other | D58: 0 | E58: 2011-06-27
B59: Brewer | C59: PTO | D59: 0 | E59: 2011-06-27
B60: Brewer | C60: PTO | D60: 8 | E60: 2011-07-04
B61: Brewer | C61: Comm | D61: 0 | E61: 2011-07-04
B62: Brewer | C62: Other | D62: 0 | E62: 2011-07-04
B63: Brewer | C63: Other | D63: 0 | E63: 2011-07-11
B64: Brewer | C64: Comm | D64: 16 | E64: 2011-07-11
B65: Brewer | C65: PTO | D65: 0 | E65: 2011-07-11
B66: Brewer | C66: Other | D66: 41.5 | E66: 2011-07-18
B67: Brewer | C67: PTO | D67: 0 | E67: 2011-07-18
B68: Brewer | C68: Comm | D68: 0 | E68: 2011-07-18
B69: Brewer | C69: Other | D69: 20.8 | E69: 2011-07-25
B70: Brewer | C70: PTO | D70: 0 | E70: 2011-07-25
B71: Brewer | C71: Comm | D71: 21 | E71: 2011-07-25
B72: Brewer | C72: PTO | D72: 0 | E72: 2011-08-01
B73: Brewer | C73: Comm | D73: 45 | E73: 2011-08-01
B74: Brewer | C74: Other | D74: 8 | E74: 2011-08-01
B75: Brewer | C75: Comm | D75: 4.5 | E75: 2011-08-08
B76: Brewer | C76: Other | D76: 0 | E76: 2011-08-08
B77: Brewer | C77: PTO | D77: 0 | E77: 2011-08-08
B78: Brewer | C78: Other | D78: 0 | E78: 2011-08-15
B79: Brewer | C79: Comm | D79: 0 | E79: 2011-08-15
B80: Brewer | C80: PTO | D80: 24 | E80: 2011-08-15
B81: Brewer | C81: Comm | D81: 0 | E81: 2011-08-22
B82: Brewer | C82: Other | D82: 0 | E82: 2011-08-22
B83: Brewer | C83: PTO | D83: 16 | E83: 2011-08-22
B84: Brewer | C84: PTO | D84: 0 | E84: 2011-08-29
B85: Brewer | C85: Other | D85: 1 | E85: 2011-08-29
B86: Brewer | C86: Comm | D86: 17 | E86: 2011-08-29
B87: Brewer | C87: Comm | D87: 25.25 | E87: 2011-09-05
B88: Brewer | C88: PTO | D88: 8 | E88: 2011-09-05
B89: Brewer | C89: Other | D89: 9 | E89: 2011-09-05
B90: Brewer | C90: Dummy | D90: 0 | E90: 2011-09-12
B91: Brewer | C91: Other | D91: 4 | E91: 2011-09-12
B92: Brewer | C92: Comm | D92: 48.5 | E92: 2011-09-12
B93: Brewer | C93: Dummy4 | D93: 0 | E93: 2011-09-12
B94: Brewer | C94: Dummy2 | D94: 0 | E94: 2011-09-12
B95: Brewer | C95: Dummy3 | D95: 0 | E95: 2011-09-12
B96: Bunn | C96: Comm | D96: 0 | E96: 2011-06-27
B97: Bunn | C97: PTO | D97: 8 | E97: 2011-06-27
B98: Bunn | C98: Edison | D98: 0 | E98: 2011-06-27
B99: Bunn | C99: Other | D99: 0 | E99: 2011-06-27
B100: Bunn | C100: Other | D100: 32 | E100: 2011-07-04
B101: Bunn | C101: Edison | D101: 0 | E101: 2011-07-04
B102: Bunn | C102: PTO | D102: 8 | E102: 2011-07-04
B103: Bunn | C103: Comm | D103: 0 | E103: 2011-07-04
B104: Bunn | C104: Comm | D104: 0 | E104: 2011-07-11
B105: Bunn | C105: PTO | D105: 12 | E105: 2011-07-11
B106: Bunn | C106: Edison | D106: 0 | E106: 2011-07-11
B107: Bunn | C107: Other | D107: 28 | E107: 2011-07-11
B108: Bunn | C108: Edison | D108: 8 | E108: 2011-07-18
B109: Bunn | C109: Comm | D109: 6 | E109: 2011-07-18
B110: Bunn | C110: Other | D110: 26 | E110: 2011-07-18
B111: Bunn | C111: PTO | D111: 0 | E111: 2011-07-18
B112: Bunn | C112: PTO | D112: 0 | E112: 2011-07-25
B113: Bunn | C113: Other | D113: 16 | E113: 2011-07-25
B114: Bunn | C114: Comm | D114: 18 | E114: 2011-07-25
B115: Bunn | C115: Edison | D115: 6 | E115: 2011-07-25
B116: Bunn | C116: PTO | D116: 0 | E116: 2011-08-01
B117: Bunn | C117: Edison | D117: 0 | E117: 2011-08-01
B118: Bunn | C118: Other | D118: 14 | E118: 2011-08-01
B119: Bunn | C119: Comm | D119: 26 | E119: 2011-08-01
B120: Bunn | C120: PTO | D120: 0 | E120: 2011-08-08
B121: Bunn | C121: Comm | D121: 33 | E121: 2011-08-08
B122: Bunn | C122: Edison | D122: 0 | E122: 2011-08-08
B123: Bunn | C123: Other | D123: 7 | E123: 2011-08-08
B124: Bunn | C124: Comm | D124: 12 | E124: 2011-08-15
B125: Bunn | C125: PTO | D125: 0 | E125: 2011-08-15
B126: Bunn | C126: Other | D126: 28 | E126: 2011-08-15
B127: Bunn | C127: Edison | D127: 0 | E127: 2011-08-15
B128: Bunn | C128: Other | D128: 31 | E128: 2011-08-22
B129: Bunn | C129: Comm | D129: 1 | E129: 2011-08-22
B130: Bunn | C130: Edison | D130: 8 | E130: 2011-08-22
B131: Bunn | C131: PTO | D131: 0 | E131: 2011-08-22
B132: Bunn | C132: Comm | D132: 7 | E132: 2011-08-29
B133: Bunn | C133: Other | D133: 32 | E133: 2011-08-29
B134: Bunn | C134: Edison | D134: 1 | E134: 2011-08-29
B135: Bunn | C135: PTO | D135: 0 | E135: 2011-08-29
B136: Bunn | C136: PTO | D136: 8 | E136: 2011-09-05
B137: Bunn | C137: Comm | D137: 2 | E137: 2011-09-05
B138: Bunn | C138: Edison | D138: 8 | E138: 2011-09-05
B139: Bunn | C139: Other | D139: 22 | E139: 2011-09-05
B140: Bunn | C140: Dummy2 | D140: 0 | E140: 2011-09-12
B141: Bunn | C141: PTO | D141: 4 | E141: 2011-09-12
B142: Bunn | C142: Dummy3 | D142: 0 | E142: 2011-09-12
B143: Bunn | C143: Dummy | D143: 0 | E143: 2011-09-12
B144: Bunn | C144: Comm | D144: 24 | E144: 2011-09-12
B145: Bunn | C145: Other | D145: 12 | E145: 2011-09-12
B146: Bunn | C146: Dummy4 | D146: 0 | E146: 2011-09-12
B147: Byers | C147: Edison | D147: 10 | E147: 2011-09-12
B148: Byers | C148: Other | D148: 40 | E148: 2011-09-12
B149: Byers | C149: Dummy4 | D149: 0 | E149: 2011-09-12
B150: Byers | C150: Dummy | D150: 0 | E150: 2011-09-12
B151: Byers | C151: Dummy3 | D151: 0 | E151: 2011-09-12
B152: Byers | C152: Dummy2 | D152: 0 | E152: 2011-09-12
B153: Dillion | C153: Other | D153: 4 | E153: 2011-06-27
B154: Dillion | C154: PTO | D154: 4 | E154: 2011-06-27
B155: Dillion | C155: Comm | D155: 0 | E155: 2011-06-27
B156: Dillion | C156: Edison | D156: 0 | E156: 2011-06-27
B157: Dillion | C157: Other | D157: 28 | E157: 2011-07-04
B158: Dillion | C158: PTO | D158: 8 | E158: 2011-07-04
B159: Dillion | C159: Edison | D159: 4 | E159: 2011-07-04
B160: Dillion | C160: Comm | D160: 0 | E160: 2011-07-04
B161: Dillion | C161: Comm | D161: 0 | E161: 2011-07-11
B162: Dillion | C162: Edison | D162: 0 | E162: 2011-07-11
B163: Dillion | C163: Other | D163: 22 | E163: 2011-07-11
B164: Dillion | C164: PTO | D164: 18 | E164: 2011-07-11
B165: Dillion | C165: Comm | D165: 0 | E165: 2011-07-18
B166: Dillion | C166: PTO | D166: 0 | E166: 2011-07-18
B167: Dillion | C167: Edison | D167: 0 | E167: 2011-07-18
B168: Dillion | C168: Other | D168: 42 | E168: 2011-07-18
B169: Dillion | C169: Edison | D169: 0 | E169: 2011-07-25
B170: Dillion | C170: Other | D170: 36.5 | E170: 2011-07-25
B171: Dillion | C171: PTO | D171: 1 | E171: 2011-07-25
B172: Dillion | C172: Comm | D172: 2.5 | E172: 2011-07-25
B173: Dillion | C173: Comm | D173: 4 | E173: 2011-08-01
B174: Dillion | C174: PTO | D174: 0 | E174: 2011-08-01
B175: Dillion | C175: Edison | D175: 0 | E175: 2011-08-01
B176: Dillion | C176: Other | D176: 37 | E176: 2011-08-01
B177: Dillion | C177: Edison | D177: 0 | E177: 2011-08-08
B178: Dillion | C178: PTO | D178: 6 | E178: 2011-08-08
B179: Dillion | C179: Comm | D179: 9 | E179: 2011-08-08
B180: Dillion | C180: Other | D180: 25 | E180: 2011-08-08
B181: Dillion | C181: Edison | D181: 0 | E181: 2011-08-15
B182: Dillion | C182: PTO | D182: 0 | E182: 2011-08-15
B183: Dillion | C183: Other | D183: 34 | E183: 2011-08-15
B184: Dillion | C184: Comm | D184: 8 | E184: 2011-08-15
B185: Dillion | C185: Edison | D185: 0 | E185: 2011-08-22
B186: Dillion | C186: Comm | D186: 21 | E186: 2011-08-22
B187: Dillion | C187: PTO | D187: 0 | E187: 2011-08-22
B188: Dillion | C188: Other | D188: 19 | E188: 2011-08-22
B189: Dillion | C189: Other | D189: 16.5 | E189: 2011-08-29
B190: Dillion | C190: Comm | D190: 25 | E190: 2011-08-29
B191: Dillion | C191: PTO | D191: 0 | E191: 2011-08-29
B192: Dillion | C192: Edison | D192: 0 | E192: 2011-08-29
B193: Dillion | C193: Comm | D193: 8.5 | E193: 2011-09-05
B194: Dillion | C194: Other | D194: 16 | E194: 2011-09-05
B195: Dillion | C195: PTO | D195: 12.5 | E195: 2011-09-05
B196: Dillion | C196: Edison | D196: 3 | E196: 2011-09-05
B197: Dillion | C197: Dummy3 | D197: 0 | E197: 2011-09-12
B198: Dillion | C198: Edison | D198: 0 | E198: 2011-09-12
B199: Dillion | C199: Dummy | D199: 0 | E199: 2011-09-12
B200: Dillion | C200: PTO | D200: 38 | E200: 2011-09-12
B201: Dillion | C201: Dummy2 | D201: 0 | E201: 2011-09-12
B202: Dillion | C202: Other | D202: 2 | E202: 2011-09-12
B203: Dillion | C203: Comm | D203: 0 | E203: 2011-09-12
... 500 more rows

Sheet Goal
B4: Table2
B5: Consultant | C5: Week | D5: Goal | E5: Avg | G5: Consultant | H5: Bebko
B6: Bebko | C6: =MIN(Table1[Week]) -> 2011-06-27 | D6: 22 | E6: =(SUMIFS(Table1[Hours],Table1[Consultant],Table2[[#This Row],[Consultant]],Table1[Category],"Comm")+SUMIFS(Table1[Hours],Table1[Consultant],Table2[[#This Row],[Consultant]],Table1[Category],"Edison"))/((MAX(Table1[Week])-MIN(Table1[Week]))/7+1) -> 24.33333333 | G6: PivotTable1 | K6: =((MAX(Table1[Week])-MIN(Table1[Week]))/7+1) -> 12
B7: Bebko | C7: =MAX(Table1[Week]) -> 2011-09-12 | G7: Week | H7: _Goal | I7: _Avg
B8: Brewer | C8: =MIN(Table1[Week]) -> 2011-06-27 | D8: 16 | E8: =(SUMIFS(Table1[Hours],Table1[Consultant],Table2[[#This Row],[Consultant]],Table1[Category],"Comm")+SUMIFS(Table1[Hours],Table1[Consultant],Table2[[#This Row],[Consultant]],Table1[Category],"Edison"))/((MAX(Table1[Week])-MIN(Table1[Week]))/7+1) -> 14.77083333 | G8: 6/27/2011 - 7/3/2011 | H8: 22 | I8: 24.33333333
B9: Brewer | C9: =MAX(Table1[Week]) -> 2011-09-12 | G9: 7/4/2011 - 7/10/2011 | H9: 22 | I9: 24.33333333
B10: Bunn | C10: =MIN(Table1[Week]) -> 2011-06-27 | D10: 10 | E10: =(SUMIFS(Table1[Hours],Table1[Consultant],Table2[[#This Row],[Consultant]],Table1[Category],"Comm")+SUMIFS(Table1[Hours],Table1[Consultant],Table2[[#This Row],[Consultant]],Table1[Category],"Edison"))/((MAX(Table1[Week])-MIN(Table1[Week]))/7+1) -> 13.33333333 | G10: 7/11/2011 - 7/17/2011 | H10: 22 | I10: 24.33333333
B11: Bunn | C11: =MAX(Table1[Week]) -> 2011-09-12 | G11: 7/18/2011 - 7/24/2011 | H11: 22 | I11: 24.33333333
B12: Byers | C12: =MIN(Table1[Week]) -> 2011-06-27 | D12: 1 | E12: =(SUMIFS(Table1[Hours],Table1[Consultant],Table2[[#This Row],[Consultant]],Table1[Category],"Comm")+SUMIFS(Table1[Hours],Table1[Consultant],Table2[[#This Row],[Consultant]],Table1[Category],"Edison"))/((MAX(Table1[Week])-MIN(Table1[Week]))/7+1) -> 0.8333333333 | G12: 7/25/2011 - 7/31/2011 | H12: 22 | I12: 24.33333333
B13: Byers | C13: =MAX(Table1[Week]) -> 2011-09-12 | G13: 8/1/2011 - 8/7/2011 | H13: 22 | I13: 24.33333333
B14: Dillion | C14: =MIN(Table1[Week]) -> 2011-06-27 | D14: 8 | E14: =(SUMIFS(Table1[Hours],Table1[Consultant],Table2[[#This Row],[Consultant]],Table1[Category],"Comm")+SUMIFS(Table1[Hours],Table1[Consultant],Table2[[#This Row],[Consultant]],Table1[Category],"Edison"))/((MAX(Table1[Week])-MIN(Table1[Week]))/7+1) -> 7.083333333 | G14: 8/8/2011 - 8/14/2011 | H14: 22 | I14: 24.33333333
B15: Dillion | C15: =MAX(Table1[Week]) -> 2011-09-12 | G15: 8/15/2011 - 8/21/2011 | H15: 22 | I15: 24.33333333
B16: D'Silva | C16: =MIN(Table1[Week]) -> 2011-06-27 | D16: 30 | E16: =(SUMIFS(Table1[Hours],Table1[Consultant],Table2[[#This Row],[Consultant]],Table1[Category],"Comm")+SUMIFS(Table1[Hours],Table1[Consultant],Table2[[#This Row],[Consultant]],Table1[Category],"Edison"))/((MAX(Table1[Week])-MIN(Table1[Week]))/7+1) -> 27.75 | G16: 8/22/2011 - 8/28/2011 | H16: 22 | I16: 24.33333333
B17: D'Silva | C17: =MAX(Table1[Week]) -> 2011-09-12 | G17: 8/29/2011 - 9/4/2011 | H17: 22 | I17: 24.33333333
B18: Furlow | C18: =MIN(Table1[Week]) -> 2011-06-27 | D18: 4 | E18: =(SUMIFS(Table1[Hours],Table1[Consultant],Table2[[#This Row],[Consultant]],Table1[Category],"Comm")+SUMIFS(Table1[Hours],Table1[Consultant],Table2[[#This Row],[Consultant]],Table1[Category],"Edison"))/((MAX(Table1[Week])-MIN(Table1[Week]))/7+1) -> 3.333333333 | G18: 9/5/2011 - 9/11/2011 | H18: 22 | I18: 24.33333333
B19: Furlow | C19: =MAX(Table1[Week]) -> 2011-09-12 | G19: 9/12/2011 - 9/13/2011 | H19: 22 | I19: 24.33333333
B20: Hume | C20: =MIN(Table1[Week]) -> 2011-06-27 | D20: 24 | E20: =(SUMIFS(Table1[Hours],Table1[Consultant],Table2[[#This Row],[Consultant]],Table1[Category],"Comm")+SUMIFS(Table1[Hours],Table1[Consultant],Table2[[#This Row],[Consultant]],Table1[Category],"Edison"))/((MAX(Table1[Week])-MIN(Table1[Week]))/7+1) -> 22.33333333 | G20: Grand Total
B21: Hume | C21: =MAX(Table1[Week]) -> 2011-09-12
B22: Jones | C22: =MIN(Table1[Week]) -> 2011-06-27 | D22: 32 | E22: =(SUMIFS(Table1[Hours],Table1[Consultant],Table2[[#This Row],[Consultant]],Table1[Category],"Comm")+SUMIFS(Table1[Hours],Table1[Consultant],Table2[[#This Row],[Consultant]],Table1[Category],"Edison"))/((MAX(Table1[Week])-MIN(Table1[Week]))/7+1) -> 36.29166667
B23: Jones | C23: =MAX(Table1[Week]) -> 2011-09-12
B24: Kauflin | C24: =MIN(Table1[Week]) -> 2011-06-27 | D24: 4 | E24: =(SUMIFS(Table1[Hours],Table1[Consultant],Table2[[#This Row],[Consultant]],Table1[Category],"Comm")+SUMIFS(Table1[Hours],Table1[Consultant],Table2[[#This Row],[Consultant]],Table1[Category],"Edison"))/((MAX(Table1[Week])-MIN(Table1[Week]))/7+1) -> 2.1875
B25: Kauflin | C25: =MAX(Table1[Week]) -> 2011-09-12
B26: Kozlowski | C26: =MIN(Table1[Week]) -> 2011-06-27 | D26: 33 | E26: =(SUMIFS(Table1[Hours],Table1[Consultant],Table2[[#This Row],[Consultant]],Table1[Category],"Comm")+SUMIFS(Table1[Hours],Table1[Consultant],Table2[[#This Row],[Consultant]],Table1[Category],"Edison"))/((MAX(Table1[Week])-MIN(Table1[Week]))/7+1) -> 30.20833333
B27: Kozlowski | C27: =MAX(Table1[Week]) -> 2011-09-12
B28: Mills | C28: =MIN(Table1[Week]) -> 2011-06-27 | D28: 8 | E28: =(SUMIFS(Table1[Hours],Table1[Consultant],Table2[[#This Row],[Consultant]],Table1[Category],"Comm")+SUMIFS(Table1[Hours],Table1[Consultant],Table2[[#This Row],[Consultant]],Table1[Category],"Edison"))/((MAX(Table1[Week])-MIN(Table1[Week]))/7+1) -> 7.5
B29: Mills | C29: =MAX(Table1[Week]) -> 2011-09-12
B30: Newman | C30: =MIN(Table1[Week]) -> 2011-06-27 | D30: 1 | E30: =(SUMIFS(Table1[Hours],Table1[Consultant],Table2[[#This Row],[Consultant]],Table1[Category],"Comm")+SUMIFS(Table1[Hours],Table1[Consultant],Table2[[#This Row],[Consultant]],Table1[Category],"Edison"))/((MAX(Table1[Week])-MIN(Table1[Week]))/7+1) -> 0
B31: Newman | C31: =MAX(Table1[Week]) -> 2011-09-12
B32: Paik | C32: =MIN(Table1[Week]) -> 2011-06-27 | D32: 1 | E32: =(SUMIFS(Table1[Hours],Table1[Consultant],Table2[[#This Row],[Consultant]],Table1[Category],"Comm")+SUMIFS(Table1[Hours],Table1[Consultant],Table2[[#This Row],[Consultant]],Table1[Category],"Edison"))/((MAX(Table1[Week])-MIN(Table1[Week]))/7+1) -> 0.3333333333
B33: Paik | C33: =MAX(Table1[Week]) -> 2011-09-12
B34: Scherrer | C34: =MIN(Table1[Week]) -> 2011-06-27 | D34: 18 | E34: =(SUMIFS(Table1[Hours],Table1[Consultant],Table2[[#This Row],[Consultant]],Table1[Category],"Comm")+SUMIFS(Table1[Hours],Table1[Consultant],Table2[[#This Row],[Consultant]],Table1[Category],"Edison"))/((MAX(Table1[Week])-MIN(Table1[Week]))/7+1) -> 16.79166667
B35: Scherrer | C35: =MAX(Table1[Week]) -> 2011-09-12
B36: Spicer | C36: =MIN(Table1[Week]) -> 2011-06-27 | D36: 38 | E36: =(SUMIFS(Table1[Hours],Table1[Consultant],Table2[[#This Row],[Consultant]],Table1[Category],"Comm")+SUMIFS(Table1[Hours],Table1[Consultant],Table2[[#This Row],[Consultant]],Table1[Category],"Edison"))/((MAX(Table1[Week])-MIN(Table1[Week]))/7+1) -> 36.5
B37: Spicer | C37: =MAX(Table1[Week]) -> 2011-09-12
B38: Stacy | C38: =MIN(Table1[Week]) -> 2011-06-27 | D38: 10 | E38: =(SUMIFS(Table1[Hours],Table1[Consultant],Table2[[#This Row],[Consultant]],Table1[Category],"Comm")+SUMIFS(Table1[Hours],Table1[Consultant],Table2[[#This Row],[Consultant]],Table1[Category],"Edison"))/((MAX(Table1[Week])-MIN(Table1[Week]))/7+1) -> 8.854166667
B39: Stacy | C39: =MAX(Table1[Week]) -> 2011-09-12
B40: Steinberg | C40: =MIN(Table1[Week]) -> 2011-06-27 | D40: 1 | E40: =(SUMIFS(Table1[Hours],Table1[Consultant],Table2[[#This Row],[Consultant]],Table1[Category],"Comm")+SUMIFS(Table1[Hours],Table1[Consultant],Table2[[#This Row],[Consultant]],Table1[Category],"Edison"))/((MAX(Table1[Week])-MIN(Table1[Week]))/7+1) -> 0
B41: Steinberg | C41: =MAX(Table1[Week]) -> 2011-09-12
B42: Stuart | C42: =MIN(Table1[Week]) -> 2011-06-27 | D42: 28 | E42: =(SUMIFS(Table1[Hours],Table1[Consultant],Table2[[#This Row],[Consultant]],Table1[Category],"Comm")+SUMIFS(Table1[Hours],Table1[Consultant],Table2[[#This Row],[Consultant]],Table1[Category],"Edison"))/((MAX(Table1[Week])-MIN(Table1[Week]))/7+1) -> 25.17916667
B43: Stuart | C43: =MAX(Table1[Week]) -> 2011-09-12
B44: Via | C44: =MIN(Table1[Week]) -> 2011-06-27 | D44: 22 | E44: =(SUMIFS(Table1[Hours],Table1[Consultant],Table2[[#This Row],[Consultant]],Table1[Category],"Comm")+SUMIFS(Table1[Hours],Table1[Consultant],Table2[[#This Row],[Consultant]],Table1[Category],"Edison"))/((MAX(Table1[Week])-MIN(Table1[Week]))/7+1) -> 19.33333333
B45: Via | C45: =MAX(Table1[Week]) -> 2011-09-12
